[Event "*** Titled Tuesday Blitz"]
[Site "Chess.com"]
[Date "2021.03.02"]
[Round "7"]
[White "salomez"]
[Black "Maddie"]
[Result "1-0"]
[WhiteElo "2219"]
[BlackElo "2072"]
[TimeControl "180+1"]
[EndTime "11:20:08 PST"]
[Termination "salomez won by checkmate"]

1. e4 {[%clk 0:02:49.5]} 1... c6 {[%clk 0:02:58.2]} 2. d4 {[%clk 0:02:48]} 2...
d5 {[%clk 0:02:57.9]} 3. Nc3 {[%clk 0:02:46.8]} 3... dxe4 {[%clk 0:02:57.4]} 4.
Nxe4 {[%clk 0:02:46]} 4... Nd7 {[%clk 0:02:57.9]} 5. Nf3 {[%clk 0:02:43.5]} 5...
Ngf6 {[%clk 0:02:57.9]} 6. Bd3 {[%clk 0:02:43]} 6... Nxe4 {[%clk 0:02:57.8]} 7.
Bxe4 {[%clk 0:02:42.7]} 7... Nf6 {[%clk 0:02:58.7]} 8. Bd3 {[%clk 0:02:40.5]}
8... Bg4 {[%clk 0:02:59.1]} 9. Be3 {[%clk 0:02:37.7]} 9... e6 {[%clk 0:02:59.1]}
10. h3 {[%clk 0:02:36.5]} 10... Bh5 {[%clk 0:02:57.7]} 11. Qe2 {[%clk 0:02:32]}
11... Be7 {[%clk 0:02:52.7]} 12. O-O-O {[%clk 0:02:29.7]} 12... Qa5 {[%clk
0:02:50.4]} 13. Kb1 {[%clk 0:02:29.1]} 13... b5 {[%clk 0:02:45.6]} 14. g4 {[%clk
0:02:25.9]} 14... Bg6 {[%clk 0:02:45.2]} 15. Ne5 {[%clk 0:02:25]} 15... Qc7
{[%clk 0:02:35.3]} 16. Bf4 {[%clk 0:02:21.2]} 16... Bd6 {[%clk 0:02:32.6]} 17.
Bxg6 {[%clk 0:02:17.1]} 17... hxg6 {[%clk 0:02:32.3]} 18. Bg3 {[%clk 0:02:16.6]}
18... Nd5 {[%clk 0:02:28]} 19. f4 {[%clk 0:02:15.7]} 19... O-O-O {[%clk
0:02:07]} 20. h4 {[%clk 0:01:36.6]} 20... Kb7 {[%clk 0:01:52.1]} 21. Rhf1 {[%clk
0:01:21.6]} 21... Ba3 {[%clk 0:01:18.9]} 22. Ka1 {[%clk 0:01:14.8]} 22... Bd6
{[%clk 0:01:16.9]} 23. c4 {[%clk 0:01:10.8]} 23... bxc4 {[%clk 0:01:14.6]} 24.
Nxc4 {[%clk 0:01:08.1]} 24... Nb6 {[%clk 0:01:13.1]} 25. Na5+ {[%clk 0:00:57.4]}
25... Ka8 {[%clk 0:01:10.5]} 26. Rc1 {[%clk 0:00:57.5]} 26... Bb4 {[%clk
0:00:40.8]} 27. Nxc6 {[%clk 0:00:42.3]} 27... Qd6 {[%clk 0:00:29.6]} 28. Qb5
{[%clk 0:00:17.2]} 28... Rd7 {[%clk 0:00:14.1]} 29. Qxb4 {[%clk 0:00:14.6]}
29... Qxb4 {[%clk 0:00:13.8]} 30. Nxb4 {[%clk 0:00:14.5]} 30... Rxd4 {[%clk
0:00:13.9]} 31. a3 {[%clk 0:00:09.1]} 31... a5 {[%clk 0:00:13.3]} 32. Nc6 {[%clk
0:00:08.7]} 32... Rd3 {[%clk 0:00:13.5]} 33. Bf2 {[%clk 0:00:08.4]} 33... Kb7
{[%clk 0:00:12]} 34. Nxa5+ {[%clk 0:00:07.9]} 34... Ka6 {[%clk 0:00:12.3]} 35.
Bxb6 {[%clk 0:00:07.9]} 35... Kxb6 {[%clk 0:00:12.4]} 36. Nc4+ {[%clk
0:00:08.8]} 36... Ka6 {[%clk 0:00:12.4]} 37. Ne5 {[%clk 0:00:09.7]} 37... Rh3
{[%clk 0:00:11.4]} 38. Nxf7 {[%clk 0:00:09.6]} 38... R8xh4 {[%clk 0:00:11.8]}
39. Ng5 {[%clk 0:00:08.4]} 39... Rh2 {[%clk 0:00:11]} 40. Nf3 {[%clk 0:00:08.5]}
40... R4h3 {[%clk 0:00:11.3]} 41. Nxh2 {[%clk 0:00:08.4]} 41... Rxh2 {[%clk
0:00:12.2]} 42. f5 {[%clk 0:00:08.3]} 42... exf5 {[%clk 0:00:12]} 43. gxf5
{[%clk 0:00:09.2]} 43... gxf5 {[%clk 0:00:12.8]} 44. Rxf5 {[%clk 0:00:09.5]}
44... Rg2 {[%clk 0:00:13.2]} 45. Rf7 {[%clk 0:00:09.2]} 45... g5 {[%clk
0:00:12.5]} 46. Rc6+ {[%clk 0:00:09.1]} 46... Kb5 {[%clk 0:00:13.1]} 47. Re6
{[%clk 0:00:08.5]} 47... Kc4 {[%clk 0:00:13.3]} 48. Ka2 {[%clk 0:00:07]} 48...
g4 {[%clk 0:00:12.7]} 49. Rg6 {[%clk 0:00:07]} 49... g3 {[%clk 0:00:12.9]} 50.
Rfg7 {[%clk 0:00:07.9]} 50... Rd2 {[%clk 0:00:12]} 51. Rxg3 {[%clk 0:00:07.7]}
51... Kc5 {[%clk 0:00:11.9]} 52. R7g5+ {[%clk 0:00:07.7]} 52... Kd4 {[%clk
0:00:12]} 53. R5g4+ {[%clk 0:00:07.2]} 53... Ke5 {[%clk 0:00:12.2]} 54. a4
{[%clk 0:00:07.4]} 54... Rd7 {[%clk 0:00:11.1]} 55. a5 {[%clk 0:00:07.4]} 55...
Ra7 {[%clk 0:00:10.8]} 56. Ra4 {[%clk 0:00:06.7]} 56... Kd5 {[%clk 0:00:10.6]}
57. b4 {[%clk 0:00:07.2]} 57... Kc4 {[%clk 0:00:10.8]} 58. Ka3 {[%clk
0:00:07.7]} 58... Rf7 {[%clk 0:00:10]} 59. Rg4+ {[%clk 0:00:07.6]} 59... Kb5
{[%clk 0:00:10.4]} 60. Rg5+ {[%clk 0:00:07.5]} 60... Kc4 {[%clk 0:00:10.7]} 61.
b5+ {[%clk 0:00:06.9]} 61... Kc3 {[%clk 0:00:10.4]} 62. a6 {[%clk 0:00:06.9]}
62... Rf1 {[%clk 0:00:10.3]} 63. Rc5+ {[%clk 0:00:05.6]} 63... Kd3 {[%clk
0:00:09.1]} 64. Kb4 {[%clk 0:00:05.3]} 64... Rb1+ {[%clk 0:00:08.7]} 65. Ka5
{[%clk 0:00:05.5]} 65... Ke3 {[%clk 0:00:08.6]} 66. a7 {[%clk 0:00:05.8]} 66...
Rg1 {[%clk 0:00:07.1]} 67. a8=Q {[%clk 0:00:05.3]} 67... Rg7 {[%clk 0:00:08]}
68. Qe8+ {[%clk 0:00:04.9]} 68... Kf3 {[%clk 0:00:07.7]} 69. Qf8+ {[%clk
0:00:04.7]} 69... Rf7 {[%clk 0:00:06.7]} 70. Qxf7+ {[%clk 0:00:04.8]} 70... Kg2
{[%clk 0:00:07.6]} 71. Rg5+ {[%clk 0:00:04.9]} 71... Kh1 {[%clk 0:00:08.5]} 72.
Qh5# {[%clk 0:00:05.3]} 1-0

[Event "*** Titled Tuesday Blitz"]
[Site "Chess.com"]
[Date "2021.03.02"]
[Round "7"]
[White "champ2005"]
[Black "Azeryahu"]
[Result "1-0"]
[WhiteElo "2996"]
[BlackElo "2731"]
[TimeControl "180+1"]
[EndTime "11:20:11 PST"]
[Termination "champ2005 won by resignation"]

1. c4 {[%clk 0:03:00.9]} 1... b6 {[%clk 0:02:56]} 2. Nc3 {[%clk 0:02:58.5]} 2...
Bb7 {[%clk 0:02:55.8]} 3. Nf3 {[%clk 0:02:54.3]} 3... c5 {[%clk 0:02:54]} 4. b3
{[%clk 0:02:48.4]} 4... g6 {[%clk 0:02:41.4]} 5. Bb2 {[%clk 0:02:48.4]} 5... Bg7
{[%clk 0:02:42.1]} 6. e3 {[%clk 0:02:45.1]} 6... Nf6 {[%clk 0:02:42.4]} 7. Be2
{[%clk 0:02:43.9]} 7... O-O {[%clk 0:02:42.6]} 8. O-O {[%clk 0:02:41.6]} 8...
Nc6 {[%clk 0:02:26.1]} 9. d4 {[%clk 0:02:27.2]} 9... cxd4 {[%clk 0:02:23.3]} 10.
Nxd4 {[%clk 0:02:18.7]} 10... Nxd4 {[%clk 0:02:20.2]} 11. Qxd4 {[%clk
0:02:19.6]} 11... Ne4 {[%clk 0:02:05.6]} 12. Qd3 {[%clk 0:02:19.3]} 12... Nxc3
{[%clk 0:02:05.9]} 13. Bxc3 {[%clk 0:02:20.2]} 13... Bxc3 {[%clk 0:02:06.3]} 14.
Qxc3 {[%clk 0:02:21.1]} 14... Qc7 {[%clk 0:02:05.7]} 15. Qd2 {[%clk 0:02:12.8]}
15... Rfd8 {[%clk 0:02:03.8]} 16. Rac1 {[%clk 0:02:12.4]} 16... Qe5 {[%clk
0:01:56.9]} 17. Rfd1 {[%clk 0:01:53.4]} 17... Rac8 {[%clk 0:01:56.9]} 18. Qd4
{[%clk 0:01:39.2]} 18... Qxd4 {[%clk 0:01:51.9]} 19. Rxd4 {[%clk 0:01:34.7]}
19... d6 {[%clk 0:01:41.2]} 20. Rcd1 {[%clk 0:01:34]} 20... Rc5 {[%clk
0:01:40.1]} 21. f4 {[%clk 0:01:32.7]} 21... f5 {[%clk 0:01:27.2]} 22. Kf2 {[%clk
0:01:30.2]} 22... Kf7 {[%clk 0:01:27.6]} 23. g4 {[%clk 0:01:28.4]} 23... Ra5
{[%clk 0:01:21.4]} 24. R1d2 {[%clk 0:01:28.2]} 24... Kf6 {[%clk 0:01:18.8]} 25.
h3 {[%clk 0:01:18.7]} 25... Rc5 {[%clk 0:01:17.8]} 26. Bf3 {[%clk 0:01:13.8]}
26... Bxf3 {[%clk 0:01:14.5]} 27. Kxf3 {[%clk 0:01:14.7]} 27... g5 {[%clk
0:01:00.8]} 28. Rd5 {[%clk 0:01:00.7]} 28... Rxd5 {[%clk 0:00:58.1]} 29. Rxd5
{[%clk 0:01:01.6]} 29... e6 {[%clk 0:00:54.7]} 30. Rd2 {[%clk 0:01:01.4]} 30...
h6 {[%clk 0:00:52.2]} 31. a3 {[%clk 0:00:49.5]} 31... a6 {[%clk 0:00:47.7]} 32.
a4 {[%clk 0:00:47.4]} 32... a5 {[%clk 0:00:43.2]} 33. gxf5 {[%clk 0:00:47.2]}
33... exf5 {[%clk 0:00:28.4]} 34. Rd5 {[%clk 0:00:47.4]} 34... Ke6 {[%clk
0:00:28.6]} 35. Rb5 {[%clk 0:00:47.5]} 35... Rb8 {[%clk 0:00:28.7]} 36. Kg3
{[%clk 0:00:37.7]} 36... Rb7 {[%clk 0:00:27.6]} 37. h4 {[%clk 0:00:35.7]} 37...
g4 {[%clk 0:00:17.6]} 38. h5 {[%clk 0:00:30.7]} 38... Rb8 {[%clk 0:00:12.3]} 39.
Kf2 {[%clk 0:00:30.7]} 39... Rb7 {[%clk 0:00:12.3]} 40. Kg2 {[%clk 0:00:25.1]}
40... Rb8 {[%clk 0:00:11.8]} 41. Kg3 {[%clk 0:00:25.6]} 41... Rb7 {[%clk
0:00:12.4]} 42. b4 {[%clk 0:00:26.2]} 42... Rc7 {[%clk 0:00:06.1]} 43. bxa5
{[%clk 0:00:10]} 43... bxa5 {[%clk 0:00:07]} 44. Rxa5 {[%clk 0:00:08.3]} 44...
Rxc4 {[%clk 0:00:07.2]} 45. Ra8 {[%clk 0:00:08.9]} 45... Rc3 {[%clk 0:00:06.3]}
46. Kf2 {[%clk 0:00:08.6]} 46... Rc2+ {[%clk 0:00:06.6]} 47. Kg3 {[%clk
0:00:08.5]} 47... Re2 {[%clk 0:00:06]} 48. a5 {[%clk 0:00:06.2]} 48... Rxe3+
{[%clk 0:00:05.8]} 49. Kf2 {[%clk 0:00:07]} 49... Rf3+ {[%clk 0:00:05.9]} 50.
Kg2 {[%clk 0:00:07.2]} 50... Rxf4 {[%clk 0:00:06]} 51. a6 {[%clk 0:00:07.6]}
51... Ra4 {[%clk 0:00:05.9]} 52. a7 {[%clk 0:00:07.9]} 52... Kd5 {[%clk
0:00:05]} 53. Kg3 {[%clk 0:00:05.7]} 53... Kd4 {[%clk 0:00:02.4]} 54. Kf4 {[%clk
0:00:05.7]} 54... Ra5 {[%clk 0:00:01.9]} 55. Rd8 {[%clk 0:00:05.6]} 55... Rxa7
{[%clk 0:00:02.2]} 56. Rxd6+ {[%clk 0:00:06.3]} 56... Kc3 {[%clk 0:00:02.5]} 57.
Rxh6 {[%clk 0:00:07.2]} 57... Rg7 {[%clk 0:00:02.2]} 58. Rg6 {[%clk 0:00:06.9]}
58... Rh7 {[%clk 0:00:02.6]} 59. Rg5 {[%clk 0:00:07.5]} 59... Kd3 {[%clk
0:00:01.7]} 60. Kxf5 {[%clk 0:00:07]} 60... Ke3 {[%clk 0:00:02.2]} 61. Kg6
{[%clk 0:00:04.9]} 61... Rh8 {[%clk 0:00:01.9]} 62. Rxg4 {[%clk 0:00:05.4]}
62... Kf3 {[%clk 0:00:02.1]} 63. Ra4 {[%clk 0:00:04.9]} 63... Rg8+ {[%clk
0:00:01.2]} 64. Kh7 {[%clk 0:00:05.1]} 64... Rb8 {[%clk 0:00:02.1]} 65. h6
{[%clk 0:00:05.5]} 65... Kg3 {[%clk 0:00:01.8]} 66. Ra7 {[%clk 0:00:04.4]} 66...
Kf4 {[%clk 0:00:01.5]} 67. Kg7 {[%clk 0:00:05]} 67... Kg5 {[%clk 0:00:01.5]} 68.
h7 {[%clk 0:00:05.5]} 1-0

[Event "*** Titled Tuesday Blitz"]
[Site "Chess.com"]
[Date "2021.03.02"]
[Round "7"]
[White "Sanan_Sjugirov"]
[Black "Supernotar"]
[Result "1-0"]
[WhiteElo "2923"]
[BlackElo "2688"]
[TimeControl "180+1"]
[EndTime "11:20:18 PST"]
[Termination "Sanan_Sjugirov won by checkmate"]

1. d4 {[%clk 0:03:00.9]} 1... d5 {[%clk 0:02:59.9]} 2. Nf3 {[%clk 0:03:00.6]}
2... Nf6 {[%clk 0:02:59]} 3. Bf4 {[%clk 0:03:00.6]} 3... e6 {[%clk 0:02:58.8]}
4. e3 {[%clk 0:03:00.9]} 4... Bd6 {[%clk 0:02:57.9]} 5. Nbd2 {[%clk 0:03:01.4]}
5... c5 {[%clk 0:02:58]} 6. dxc5 {[%clk 0:02:59.2]} 6... Bxc5 {[%clk 0:02:56.2]}
7. Bd3 {[%clk 0:02:56.4]} 7... Nc6 {[%clk 0:02:55]} 8. O-O {[%clk 0:02:55.8]}
8... O-O {[%clk 0:02:48.8]} 9. e4 {[%clk 0:02:48.1]} 9... Nb4 {[%clk 0:02:48.7]}
10. e5 {[%clk 0:02:45.3]} 10... Nxd3 {[%clk 0:02:42.8]} 11. cxd3 {[%clk
0:02:46.2]} 11... Nd7 {[%clk 0:02:40.1]} 12. Bg5 {[%clk 0:02:36.3]} 12... Be7
{[%clk 0:02:29.6]} 13. Bxe7 {[%clk 0:02:35.8]} 13... Qxe7 {[%clk 0:02:30.5]} 14.
Rc1 {[%clk 0:02:34.7]} 14... Nb8 {[%clk 0:02:24.6]} 15. Nd4 {[%clk 0:02:30]}
15... Bd7 {[%clk 0:02:03.3]} 16. f4 {[%clk 0:02:12.9]} 16... Nc6 {[%clk
0:02:00]} 17. N2b3 {[%clk 0:02:03.1]} 17... a5 {[%clk 0:01:51.4]} 18. Nxc6
{[%clk 0:02:01]} 18... Bxc6 {[%clk 0:01:42.6]} 19. Qd2 {[%clk 0:02:00.5]} 19...
Rfc8 {[%clk 0:01:33]} 20. Nxa5 {[%clk 0:01:49.1]} 20... Qd8 {[%clk 0:01:26.4]}
21. Nxc6 {[%clk 0:01:43.9]} 21... bxc6 {[%clk 0:01:24.3]} 22. b3 {[%clk
0:01:38.3]} 22... Qb6+ {[%clk 0:01:19.9]} 23. Qf2 {[%clk 0:01:31.5]} 23... c5
{[%clk 0:01:19.1]} 24. Rc2 {[%clk 0:01:27.7]} 24... Qb5 {[%clk 0:01:07.6]} 25.
Qe2 {[%clk 0:01:23.4]} 25... g6 {[%clk 0:00:57.6]} 26. Rfc1 {[%clk 0:01:22.7]}
26... Ra5 {[%clk 0:00:53.6]} 27. g3 {[%clk 0:01:11.7]} 27... Qb4 {[%clk
0:00:51.4]} 28. Kg2 {[%clk 0:00:59.1]} 28... Rca8 {[%clk 0:00:48.7]} 29. Qf2
{[%clk 0:00:53.5]} 29... h5 {[%clk 0:00:35.8]} 30. h4 {[%clk 0:00:53.1]} 30...
Kg7 {[%clk 0:00:35.5]} 31. Kh3 {[%clk 0:00:52.3]} 31... R8a7 {[%clk 0:00:31.5]}
32. Rb2 {[%clk 0:00:26.7]} 32... Ra8 {[%clk 0:00:29.2]} 33. Rcc2 {[%clk
0:00:25.3]} 33... R8a7 {[%clk 0:00:29.3]} 34. Re2 {[%clk 0:00:20.9]} 34... Ra8
{[%clk 0:00:28.8]} 35. Rbc2 {[%clk 0:00:21.1]} 35... R8a7 {[%clk 0:00:28.7]} 36.
Kg2 {[%clk 0:00:15.3]} 36... Ra8 {[%clk 0:00:28.8]} 37. Qe3 {[%clk 0:00:15.2]}
37... R8a7 {[%clk 0:00:28.8]} 38. Rf2 {[%clk 0:00:07.1]} 38... Ra8 {[%clk
0:00:28.9]} 39. Kh2 {[%clk 0:00:06.6]} 39... Qb5 {[%clk 0:00:26.8]} 40. Rg2
{[%clk 0:00:06.2]} 40... Qb4 {[%clk 0:00:24.9]} 41. Qe2 {[%clk 0:00:02.8]} 41...
Rh8 {[%clk 0:00:22.4]} 42. Qf2 {[%clk 0:00:02.5]} 42... Qb5 {[%clk 0:00:21.2]}
43. Qd2 {[%clk 0:00:02.5]} 43... Rha8 {[%clk 0:00:20.2]} 44. Re2 {[%clk
0:00:03]} 44... R8a7 {[%clk 0:00:19.3]} 45. Kg2 {[%clk 0:00:03.5]} 45... Ra8
{[%clk 0:00:19.9]} 46. Qc3 {[%clk 0:00:03.6]} 46... R8a7 {[%clk 0:00:19.8]} 47.
Kh3 {[%clk 0:00:03.6]} 47... Ra8 {[%clk 0:00:20.1]} 48. Qd2 {[%clk 0:00:02.4]}
48... R8a7 {[%clk 0:00:20.4]} 49. Qe3 {[%clk 0:00:02.6]} 49... Ra8 {[%clk
0:00:20.9]} 50. Rf2 {[%clk 0:00:02]} 50... Rh8 {[%clk 0:00:20.2]} 51. Rce2
{[%clk 0:00:02.1]} 51... Qb4 {[%clk 0:00:19.1]} 52. Qc1 {[%clk 0:00:02.2]} 52...
Rha8 {[%clk 0:00:18.5]} 53. Rc2 {[%clk 0:00:02.4]} 53... Qb5 {[%clk 0:00:18.2]}
54. Qe3 {[%clk 0:00:02.5]} 54... Qb4 {[%clk 0:00:17.9]} 55. Rfe2 {[%clk
0:00:02.8]} 55... Qb5 {[%clk 0:00:18]} 56. Kh2 {[%clk 0:00:02.2]} 56... Qb4
{[%clk 0:00:18.3]} 57. Rg2 {[%clk 0:00:02.7]} 57... Qb5 {[%clk 0:00:17.8]} 58.
Rgd2 {[%clk 0:00:03.2]} 58... Qb4 {[%clk 0:00:17]} 59. Re2 {[%clk 0:00:03.8]}
59... Qb5 {[%clk 0:00:17.3]} 60. f5 {[%clk 0:00:04.2]} 60... gxf5 {[%clk
0:00:13.7]} 61. Qg5+ {[%clk 0:00:04]} 61... Kf8 {[%clk 0:00:14.2]} 62. Qxh5
{[%clk 0:00:03.9]} 62... Qxd3 {[%clk 0:00:14.1]} 63. Qh8+ {[%clk 0:00:04]} 63...
Ke7 {[%clk 0:00:14.3]} 64. Qf6+ {[%clk 0:00:04.9]} 64... Ke8 {[%clk 0:00:14.5]}
65. Rf2 {[%clk 0:00:03.8]} 65... Ra3 {[%clk 0:00:10.7]} 66. h5 {[%clk
0:00:02.9]} 66... c4 {[%clk 0:00:08.8]} 67. h6 {[%clk 0:00:02.8]} 67... cxb3
{[%clk 0:00:06.1]} 68. h7 {[%clk 0:00:02.5]} 68... bxc2 {[%clk 0:00:05.3]} 69.
h8=Q+ {[%clk 0:00:02.8]} 69... Kd7 {[%clk 0:00:06.2]} 70. Qxf7+ {[%clk
0:00:03.4]} 70... Kc6 {[%clk 0:00:06.7]} 71. Qxe6+ {[%clk 0:00:04.1]} 71... Kc5
{[%clk 0:00:07.4]} 72. Qd6+ {[%clk 0:00:04.4]} 72... Kd4 {[%clk 0:00:07.6]} 73.
Qh4+ {[%clk 0:00:04.7]} 73... Ke3 {[%clk 0:00:08]} 74. Qc5+ {[%clk 0:00:04.7]}
74... d4 {[%clk 0:00:07.8]} 75. Qf4# {[%clk 0:00:05.4]} 1-0

[Event "*** Titled Tuesday Blitz"]
[Site "Chess.com"]
[Date "2021.03.02"]
[Round "7"]
[White "Walter_White_Poland"]
[Black "WPWPWP-2015"]
[Result "0-1"]
[WhiteElo "2290"]
[BlackElo "2468"]
[TimeControl "180+1"]
[EndTime "11:20:21 PST"]
[Termination "WPWPWP-2015 won on time"]

1. e4 {[%clk 0:03:00.9]} 1... e5 {[%clk 0:00:16.5]} 2. Nf3 {[%clk 0:02:58.3]}
2... Nc6 {[%clk 0:00:16.5]} 3. Bb5 {[%clk 0:02:58.3]} 3... Nf6 {[%clk
0:00:16.7]} 4. O-O {[%clk 0:02:57.7]} 4... Nxe4 {[%clk 0:00:16.9]} 5. d4 {[%clk
0:02:58]} 5... Nd6 {[%clk 0:00:17.3]} 6. Bg5 {[%clk 0:02:58.5]} 6... Be7 {[%clk
0:00:16.8]} 7. Bxc6 {[%clk 0:02:57.7]} 7... dxc6 {[%clk 0:00:16.5]} 8. dxe5
{[%clk 0:02:55.3]} 8... Nf5 {[%clk 0:00:14.9]} 9. Qxd8+ {[%clk 0:02:54.2]} 9...
Bxd8 {[%clk 0:00:15.2]} 10. Bxd8 {[%clk 0:02:53.5]} 10... Kxd8 {[%clk
0:00:16.1]} 11. Nc3 {[%clk 0:02:53.8]} 11... h6 {[%clk 0:00:15.8]} 12. h3 {[%clk
0:02:49.7]} 12... Be6 {[%clk 0:00:15.1]} 13. g4 {[%clk 0:02:43.6]} 13... Ne7
{[%clk 0:00:14.7]} 14. Nd4 {[%clk 0:02:43.4]} 14... Bd5 {[%clk 0:00:13]} 15.
Rad1 {[%clk 0:02:34.4]} 15... Ke8 {[%clk 0:00:12.7]} 16. Nf5 {[%clk 0:02:13.6]}
16... Nxf5 {[%clk 0:00:12.1]} 17. Nxd5 {[%clk 0:02:10.9]} 17... cxd5 {[%clk
0:00:12.9]} 18. gxf5 {[%clk 0:02:10.9]} 18... Rd8 {[%clk 0:00:11.7]} 19. Rd3
{[%clk 0:01:56.8]} 19... g6 {[%clk 0:00:10.3]} 20. Rfd1 {[%clk 0:01:42.5]} 20...
c6 {[%clk 0:00:10.2]} 21. c4 {[%clk 0:01:42.4]} 21... gxf5 {[%clk 0:00:09.5]}
22. cxd5 {[%clk 0:01:42.3]} 22... cxd5 {[%clk 0:00:08.2]} 23. Rxd5 {[%clk
0:01:42.4]} 23... Rxd5 {[%clk 0:00:08.3]} 24. Rxd5 {[%clk 0:01:43.3]} 24... Rg8+
{[%clk 0:00:07.3]} 25. Kf1 {[%clk 0:01:43]} 25... Ke7 {[%clk 0:00:07.5]} 26. Ke2
{[%clk 0:01:34.8]} 26... Rg6 {[%clk 0:00:07.4]} 27. Ra5 {[%clk 0:01:22.2]} 27...
a6 {[%clk 0:00:07.2]} 28. Ke3 {[%clk 0:01:19]} 28... Rb6 {[%clk 0:00:07.1]} 29.
b3 {[%clk 0:01:17.3]} 29... Ke6 {[%clk 0:00:07.6]} 30. Rc5 {[%clk 0:01:11.8]}
30... f6 {[%clk 0:00:07.4]} 31. exf6 {[%clk 0:01:10.3]} 31... Kxf6 {[%clk
0:00:08.3]} 32. f4 {[%clk 0:01:07.8]} 32... Re6+ {[%clk 0:00:08.2]} 33. Kf3
{[%clk 0:01:06.9]} 33... Rd6 {[%clk 0:00:08.7]} 34. Rc7 {[%clk 0:01:05.2]} 34...
b5 {[%clk 0:00:08.5]} 35. Ra7 {[%clk 0:01:03.7]} 35... Rd3+ {[%clk 0:00:07.7]}
36. Ke2 {[%clk 0:01:02.5]} 36... Rd6 {[%clk 0:00:07.6]} 37. Ke3 {[%clk 0:01:02]}
37... Re6+ {[%clk 0:00:07.7]} 38. Kf3 {[%clk 0:00:59.3]} 38... Rd6 {[%clk
0:00:06.7]} 39. Rh7 {[%clk 0:00:57.9]} 39... Kg6 {[%clk 0:00:06.9]} 40. Ra7
{[%clk 0:00:57.6]} 40... Re6 {[%clk 0:00:07]} 41. h4 {[%clk 0:00:55.5]} 41...
Kh5 {[%clk 0:00:06.8]} 42. Rf7 {[%clk 0:00:54.5]} 42... Kxh4 {[%clk 0:00:05.9]}
43. Rxf5 {[%clk 0:00:54.5]} 43... h5 {[%clk 0:00:05.9]} 44. Rc5 {[%clk
0:00:31.3]} 44... Rd6 {[%clk 0:00:05.8]} 45. Ke4 {[%clk 0:00:22.2]} 45... Rd2
{[%clk 0:00:05.7]} 46. a4 {[%clk 0:00:15.2]} 46... bxa4 {[%clk 0:00:05]} 47.
bxa4 {[%clk 0:00:15.6]} 47... Ra2 {[%clk 0:00:04.6]} 48. Ra5 {[%clk 0:00:15]}
48... Kg4 {[%clk 0:00:04.1]} 49. Rxa6 {[%clk 0:00:15.4]} 49... Re2+ {[%clk
0:00:02.9]} 50. Kd5 {[%clk 0:00:12.1]} 50... Kxf4 {[%clk 0:00:02.4]} 51. Rh6
{[%clk 0:00:11.3]} 51... Kg5 {[%clk 0:00:02.2]} 52. Ra6 {[%clk 0:00:09.3]} 52...
Ra2 {[%clk 0:00:02.9]} 53. a5 {[%clk 0:00:09.5]} 53... h4 {[%clk 0:00:03.6]} 54.
Ra8 {[%clk 0:00:09.6]} 54... h3 {[%clk 0:00:04]} 55. Kc6 {[%clk 0:00:07.7]}
55... Kg4 {[%clk 0:00:03.8]} 56. a6 {[%clk 0:00:05.7]} 56... Rc2+ {[%clk
0:00:03.7]} 57. Kb6 {[%clk 0:00:05.5]} 57... Rb2+ {[%clk 0:00:04.2]} 58. Ka7
{[%clk 0:00:05.4]} 58... h2 {[%clk 0:00:04.3]} 59. Rg8+ {[%clk 0:00:05.8]} 59...
Kf3 {[%clk 0:00:04]} 60. Rh8 {[%clk 0:00:04.8]} 60... Kg2 {[%clk 0:00:04]} 61.
Ka8 {[%clk 0:00:05.1]} 61... Rb3 {[%clk 0:00:03.4]} 62. a7 {[%clk 0:00:05.5]}
62... Rh3 {[%clk 0:00:03.4]} 63. Rg8+ {[%clk 0:00:05.8]} 63... Kf2 {[%clk
0:00:03.5]} 64. Kb8 {[%clk 0:00:03.9]} 64... h1=Q {[%clk 0:00:03]} 65. a8=Q
{[%clk 0:00:04.8]} 65... Rb3+ {[%clk 0:00:02.7]} 66. Kc7 {[%clk 0:00:01.6]}
66... Qc1+ {[%clk 0:00:03.2]} 67. Kd6 {[%clk 0:00:01.9]} 67... Rd3+ {[%clk
0:00:03.1]} 68. Qd5 {[%clk 0:00:02.6]} 68... Rxd5+ {[%clk 0:00:02.7]} 69. Kxd5
{[%clk 0:00:03.5]} 69... Qd2+ {[%clk 0:00:02.6]} 70. Ke6 {[%clk 0:00:03.4]}
70... Qa2+ {[%clk 0:00:02.5]} 71. Ke7 {[%clk 0:00:03.7]} 71... Qxg8 {[%clk
0:00:03]} 0-1